[Event "FTX Road to Miami KO 2022"]
[Site "Online"]
[Date "2022.07.14"]
[Round "1.1"]
[White "Wei, Yi"]
[Black "Sevian, Samuel"]
[Result "1/2-1/2"]
[ECO "A20"]
[WhiteElo "2727"]
[BlackElo "2684"]
[PlyCount "197"]
[EventDate "2022.07.09"]
[EventType "k.o."]
[EventCountry "NET"]
[TimeControl "900+10"]

1. c4 {[%emt 0:00:00]} e5 {[%emt 0:00:00]} 2. g3 {[%emt 0:00:04]} c6 {[%emt 0:00:15]} 3. Nf3 {[%emt 0:00:02]} e4 {[%emt 0:00:05]} 4. Nd4 {[%emt 0:00:01]} d5 {[%emt 0:00:01]} 5. cxd5 {[%emt 0:00:12]} Qxd5 {[%emt 0:00:00]} 6. Nc2 {[%emt 0:00:01]} Nf6 {[%emt 0:00:03]} 7. Nc3 {[%emt 0:00:05]} Qe5 {[%emt 0:00:02]} 8. Bg2 {[%emt 0:00:01]} Na6 {[%emt 0:00:17]} 9. O-O {[%emt 0:00:02]} Be7 {[%emt 0:00:13]} 10. Ne3 {[%emt 0:00:02]} O-O {[%emt 0:02:01]} 11. a3 {[%emt 0:00:02]} Re8 {[%emt 0:00:17]} 12. b4 {[%emt 0:00:04]} Qe6 {[%emt 0:01:00]} 13. Bb2 {[%emt 0:01:02]} c5 {[%emt 0:00:20]} 14. b5 {[%emt 0:01:42]} Nc7 {[%emt 0:00:06]} 15. Qc2 {[%emt 0:00:01]} Bf8 {[%emt 0:00:46]} 16. f3 {[%emt 0:00:14]} exf3 {[%emt 0:00:21]} 17. Rxf3 {[%emt 0:00:02]} Bd6 {[%emt 0:05:13]} 18. Raf1 {[%emt 0:02:00]} Be5 {[%emt 0:00:03]} 19. Nf5 {[%emt 0:00:12]} c4 {[%emt 0:03:43]} 20. Kh1 {[%emt 0:05:41]} Ng4 {[%emt 0:00:03]} 21. Ne4 {[%emt 0:01:55]} Bxb2 {[%emt 0:00:20]} 22. Qxb2 {[%emt 0:00:16]} Qe5 {[%emt 0:00:01]} 23. Qc1 {[%emt 0:03:45]} Qxe4 {[%emt 0:01:10]} 24. Nd6 {[%emt 0:00:02]} Qe6 {[%emt 0:00:02]} 25. Nxe8 {[%emt 0:00:05]} Nxe8 {[%emt 0:00:01]} 26. Rf4 {[%emt 0:00:47]} Nd6 {[%emt 0:01:13]} 27. Qc3 {[%emt 0:00:31]} Bd7 {[%emt 0:00:05]} 28. Qd4 {[%emt 0:00:30]} Ne5 {[%emt 0:01:01]} 29. a4 {[%emt 0:00:05]} Qe7 {[%emt 0:00:10]} 30. Qc5 {[%emt 0:00:08]} Rc8 {[%emt 0:00:51]} 31. Qxa7 {[%emt 0:00:02]} Be6 {[%emt 0:00:02]} 32. Qb6 {[%emt 0:00:15]} h5 {[%emt 0:00:13]} 33. Rd4 {[%emt 0:00:09]} Nf5 {[%emt 0:00:12]} 34. Re4 {[%emt 0:00:01]} Qc5 {[%emt 0:00:14]} 35. Qxc5 {[%emt 0:00:25]} Rxc5 {[%emt 0:00:00]} 36. Ref4 {[%emt 0:00:10]} Ng6 {[%emt 0:00:13]} 37. R4f3 {[%emt 0:00:26]} b6 {[%emt 0:00:13]} 38. Rc3 {[%emt 0:00:02]} Ne5 {[%emt 0:00:08]} 39. Rf4 {[%emt 0:00:10]} g5 {[%emt 0:00:04]} 40. Rf1 {[%emt 0:00:15]} Nd4 {[%emt 0:00:09]} 41. Re1 {[%emt 0:00:11]} Kg7 {[%emt 0:00:18]} 42. d3 {[%emt 0:00:13]} Nb3 {[%emt 0:00:26]} 43. dxc4 {[%emt 0:00:08]} Na5 {[%emt 0:00:01]} 44. Rd1 {[%emt 0:00:12]} Rxc4 {[%emt 0:00:00]} 45. Rxc4 {[%emt 0:00:06]} Nexc4 {[%emt 0:00:00]} 46. Be4 {[%emt 0:00:08]} Kf6 {[%emt 0:00:02]} 47. h4 {[%emt 0:00:19]} Ke5 {[%emt 0:00:03]} 48. Bd3 {[%emt 0:00:10]} Nb2 {[%emt 0:00:43]} 49. Rd2 {[%emt 0:00:02]} Nxa4 {[%emt 0:00:01]} 50. hxg5 {[%emt 0:00:02]} Nc3 {[%emt 0:00:06]} 51. Rc2 {[%emt 0:00:14]} Kd4 {[%emt 0:00:08]} 52. g6 {[%emt 0:00:04]} fxg6 {[%emt 0:00:03]} 53. Bxg6 {[%emt 0:00:00]} Bg4 {[%emt 0:00:04]} 54. e3+ {[%emt 0:00:22]} Kc4 {[%emt 0:00:01]} 55. e4 {[%emt 0:00:03]} Kd4 {[%emt 0:00:13]} 56. Rd2+ {[%emt 0:00:29]} Ke3 {[%emt 0:00:23]} 57. Rd6 {[%emt 0:00:14]} Nc4 {[%emt 0:00:02]} 58. Rc6 {[%emt 0:00:03]} Kd4 {[%emt 0:00:03]} 59. Bf5 {[%emt 0:00:19]} Nxb5 {[%emt 0:00:41]} 60. Kg2 {[%emt 0:00:10]} Nc3 {[%emt 0:00:18]} 61. Bxg4 {[%emt 0:00:09]} hxg4 {[%emt 0:00:02]} 62. e5 {[%emt 0:00:09]} Kd5 {[%emt 0:00:20]} 63. Rg6 {[%emt 0:00:01]} Kxe5 {[%emt 0:00:10]} 64. Kf2 {[%emt 0:00:12]} Ne4+ {[%emt 0:00:01]} 65. Ke1 {[%emt 0:00:03]} Kf5 {[%emt 0:00:03]} 66. Rc6 {[%emt 0:00:08]} b5 {[%emt 0:00:02]} 67. Rc8 {[%emt 0:00:08]} Ke5 {[%emt 0:00:15]} 68. Rg8 {[%emt 0:00:08]} Kf5 {[%emt 0:00:10]} 69. Rf8+ {[%emt 0:00:01]} Nf6 {[%emt 0:00:00]} 70. Ke2 {[%emt 0:00:02]} Nd6 {[%emt 0:00:05]} 71. Kd3 {[%emt 0:00:10]} Ke5 {[%emt 0:00:05]} 72. Rh8 {[%emt 0:00:14]} Kd5 {[%emt 0:00:26]} 73. Rh6 {[%emt 0:00:05]} Nde4 {[%emt 0:00:02]} 74. Rg6 {[%emt 0:00:09]} Kc5 {[%emt 0:00:01]} 75. Rh6 {[%emt 0:00:30]} Kb4 {[%emt 0:00:04]} 76. Kd4 {[%emt 0:00:30]} Kb3 {[%emt 0:00:03]} 77. Rh1 {[%emt 0:00:04]} b4 {[%emt 0:00:04]} 78. Rf1 {[%emt 0:00:17]} Ka3 {[%emt 0:00:03]} 79. Ra1+ {[%emt 0:00:08]} Kb2 {[%emt 0:00:01]} 80. Ra6 {[%emt 0:00:02]} b3 {[%emt 0:00:02]} 81. Rb6 {[%emt 0:00:15]} Kc2 {[%emt 0:00:02]} 82. Rc6+ {[%emt 0:00:03]} Kb1 {[%emt 0:00:02]} 83. Rb6 {[%emt 0:00:12]} b2 {[%emt 0:00:02]} 84. Rc6 {[%emt 0:00:09]} Ka2 {[%emt 0:01:50]} 85. Ra6+ {[%emt 0:00:01]} Kb3 {[%emt 0:00:01]} 86. Rb6+ {[%emt 0:00:01]} Kc2 {[%emt 0:00:01]} 87. Rc6+ {[%emt 0:00:01]} Kd2 {[%emt 0:00:00]} 88. Rb6 {[%emt 0:00:02]} Kc1 {[%emt 0:00:03]} 89. Rc6+ {[%emt 0:00:01]} Kb1 {[%emt 0:00:01]} 90. Re6 {[%emt 0:00:23]} Nxg3 {[%emt 0:01:01]} 91. Rxf6 {[%emt 0:00:03]} Kc2 {[%emt 0:00:07]} 92. Rc6+ {[%emt 0:00:27]} Kb1 {[%emt 0:00:19]} 93. Rg6 {[%emt 0:00:29]} Nf1 {[%emt 0:00:11]} 94. Kd3 {[%emt 0:00:10]} g3 {[%emt 0:00:10]} 95. Ke2 {[%emt 0:00:11]} g2 {[%emt 0:00:10]} 96. Rxg2 {[%emt 0:00:06]} Ka1 {[%emt 0:00:01]} 97. Rg1 {[%emt 0:00:02]} b1=Q {[%emt 0:00:02]} 98. Rxf1 {[%emt 0:00:01]} Qxf1+ {[%emt 0:00:01]} 99. Kxf1 {[%emt 0:00:01]} 1/2-1/2

[Event "FTX Road to Miami KO 2022"]
[Site "Online"]
[Date "2022.07.14"]
[Round "1.1"]
[White "Xiong, Jeffery"]
[Black "Rapport, Richard"]
[Result "1/2-1/2"]
[ECO "D13"]
[WhiteElo "2691"]
[BlackElo "2764"]
[Annotator "TA"]
[PlyCount "280"]
[EventDate "2022.07.09"]
[EventType "k.o."]
[EventCountry "NET"]
[SourceTitle "playchess.com"]
[Source "ChessBase"]
[SourceQuality "1"]
[TimeControl "900+10"]

{[%evp 119,280,-8,-7,-8,-8,-8,-8,-8,-8,-8,-8,-8,-8,-8,-8,-8,-8,-8,-8,-8,-8,-8,-8,-8,-8,-8,-8,-8,-8,-8,-8,-8,-8,-8,-8,-8,-8,-8,-8,-8,-8,-8,-8,-8,-8,-8,0,0,0,-8,0,-8,0,0,0,0,0,0,0,0,0,0,0,-8,0,0,0,0,0,0,0,0,0,0,0,0,0,0,0,0,0,0,0,0,0,-8,0,0,0,0,0,0,0,0,0,0,0,0,0,0,0,0,0,0,0,0,0,0,0,0,0,0,0,0,0,0,0,0,0,0,0,0,0,0,0,0,0,0,0,-8,0,-8,0,0,0,0,0,0,0,0,0,0,0,0,0,0,0,0,0,0,0,0,0,0,0,0,0,0,0,0,0,0,0]} 1. d4 {[%emt 0:00:00]} Nf6 {[%emt 0:00:00]} 2. c4 {[%emt 0:00:02]} c6 {[%emt 0:00:07]} 3. Nc3 {[%emt 0:00:09]} d5 {[%emt 0:00:03]} 4. cxd5 {[%emt 0:00:03]} cxd5 {[%emt 0:00:00]} 5. Bf4 {[%emt 0:00:01]} Nc6 {[%emt 0:00:02]} 6. e3 {[%emt 0:00:02]} a6 {[%emt 0:00:07]} 7. Be2 {[%emt 0:00:03]} Bf5 {[%emt 0:00:16]} 8. Nf3 {[%emt 0:00:02]} e6 {[%emt 0:00:06]} 9. Qb3 {[%emt 0:00:03]} Ra7 {[%emt 0:00:14]} 10. O-O {[%emt 0:00:51]} Nd7 {[%emt 0:00:32]} 11. h3 {[%emt 0:02:19]} Be7 {[%emt 0:00:08]} 12. Bh2 {[%emt 0:00:04]} O-O {[%emt 0:00:10]} 13. Rfc1 {[%emt 0:00:12]} Na5 {[%emt 0:00:18]} 14. Qa4 {[%emt 0:02:07]} b5 {[%emt 0:00:18]} 15. Qd1 {[%emt 0:00:31]} Qb6 {[%emt 0:00:55]} 16. a4 {[%emt 0:00:15]} b4 {[%emt 0:00:18]} 17. Nb1 {[%emt 0:00:01]} b3 {[%emt 0:00:33]} 18. Ne1 {[%emt 0:00:28]} Bd6 {[%emt 0:01:49]} 19. Bxd6 {[%emt 0:00:11]} Qxd6 {[%emt 0:00:00]} 20. Nd2 {[%emt 0:00:08]} Rb8 {[%emt 0:00:07]} 21. Rc3 {[%emt 0:00:05]} Rab7 {[%emt 0:00:14]} 22. Nd3 {[%emt 0:01:53]} e5 {[%emt 0:01:06]} 23. dxe5 {[%emt 0:00:33]} Nxe5 {[%emt 0:00:00]} 24. Nxe5 {[%emt 0:00:04]} Qxe5 {[%emt 0:00:02]} 25. Bxa6 {[%emt 0:03:39]} Rb6 {[%emt 0:00:32]} 26. Bb5 {[%emt 0:00:31]} Rg6 {[%emt 0:00:15]} 27. Nf3 {[%emt 0:00:34]} Qf6 {[%emt 0:00:42]} 28. Qxd5 {[%emt 0:00:19]} Rd8 {[%emt 0:00:32]} 29. Qe5 {[%emt 0:00:43]} Bxh3 {[%emt 0:00:09]} 30. Qxf6 {[%emt 0:00:02]} Rxg2+ {[%emt 0:00:13]} 31. Kh1 {[%emt 0:00:01]} gxf6 {[%emt 0:00:01]} 32. Ng1 {[%emt 0:00:06]} Rxf2 {[%emt 0:00:11]} 33. Nxh3 {[%emt 0:00:01]} Rxb2 {[%emt 0:00:03]} 34. Rg1+ {[%emt 0:00:15]} Kf8 {[%emt 0:00:13]} 35. Bd3 {[%emt 0:00:13]} Ra2 {[%emt 0:00:14]} 36. Nf4 {[%emt 0:02:01]} b2 {[%emt 0:00:56]} 37. Rc5 {[%emt 0:00:50]} Nb3 {[%emt 0:00:29]} 38. Rb5 {[%emt 0:00:04]} Nd2 {[%emt 0:00:03]} 39. Bxh7 {[%emt 0:00:47]} Nf3 {[%emt 0:00:42]} 40. Rg8+ {[%emt 0:00:21]} Ke7 {[%emt 0:00:01]} 41. Rb7+ {[%emt 0:00:00]} Rd7 {[%emt 0:00:02]} 42. Nd5+ {[%emt 0:00:10]} Ke6 {[%emt 0:01:16]} 43. Re8+ {[%emt 0:01:11]} Kxd5 {[%emt 0:00:07]} 44. Rxd7+ {[%emt 0:00:02]} Kc6 {[%emt 0:00:01]} 45. Rd1 {[%emt 0:00:25]} b1=Q {[%emt 0:00:04]} 46. Rc8+ {[%emt 0:00:01]} Kb7 {[%emt 0:00:01]} 47. Rxb1+ {[%emt 0:00:01]} Kxc8 {[%emt 0:00:01]} 48. Rc1+ {[%emt 0:00:03]} Kb8 {[%emt 0:00:22]} 49. Bc2 {[%emt 0:00:08]} Ka7 {[%emt 0:00:00]} 50. Rf1 {[%emt 0:00:04]} Nd2 {[%emt 0:00:39]} 51. Rxf6 {[%emt 0:00:19]} Rxc2 {[%emt 0:00:03]} 52. Rxf7+ {[%emt 0:00:00]} Kb6 {[%emt 0:00:03]} 53. Rf2 {[%emt 0:00:01]} Rc1+ {[%emt 0:00:03]} 54. Kg2 {[%emt 0:00:01]} Nc4 {[%emt 0:00:02]} 55. Kf3 {[%emt 0:00:03]} Kc5 {[%emt 0:00:04]} 56. Ke4 {[%emt 0:00:05]} Re1 {[%emt 0:00:03]} 57. Rf5+ {[%emt 0:00:06]} Kb4 {[%emt 0:00:02]} 58. Rb5+ {[%emt 0:00:05]} Kxa4 {[%emt 0:00:12]} 59. Rb8 {[%emt 0:00:02]} Ka5 {[%emt 0:00:05]} 60. Kd4 {[%emt 0:00:04]} Nb6 {[%emt 0:00:04]} 61. Rb7 {[%emt 0:00:15]} Kb5 {[%emt 0:00:15]} 62. Rc7 {[%emt 0:00:02]} Rd1+ {[%emt 0:00:05]} 63. Ke4 {[%emt 0:00:01]} Nc4 {[%emt 0:00:03]} 64. Kf4 {[%emt 0:00:04]} Rf1+ {[%emt 0:00:10]} 65. Ke4 {[%emt 0:00:02]} Na5 {[%emt 0:00:05]} 66. Kd5 {[%emt 0:00:15]} Rd1+ {[%emt 0:00:02]} 67. Ke4 {[%emt 0:00:01]} Nc6 {[%emt 0:00:02]} 68. Rh7 {[%emt 0:00:01]} Kc4 {[%emt 0:00:03]} 69. Rh2 {[%emt 0:00:02]} Nb4 {[%emt 0:00:03]} 70. Rh8 {[%emt 0:00:01]} Nd3 {[%emt 0:00:02]} 71. Rc8+ {[%emt 0:00:04]} Nc5+ {[%emt 0:00:02]} 72. Kf3 {[%emt 0:00:01]} Rf1+ {[%emt 0:00:05]} 73. Ke2 {[%emt 0:00:01]} Rf7 {[%emt 0:00:05]} 74. Rd8 {[%emt 0:00:02]} Ne6 {[%emt 0:00:21]} 75. Rd6 {[%emt 0:00:07]} Rf6 {[%emt 0:00:02]} 76. Rd1 {[%emt 0:00:12]} Rh6 {[%emt 0:00:07]} 77. Kf3 {[%emt 0:00:03]} Kc5 {[%emt 0:00:25]} 78. Ke4 {[%emt 0:00:06]} Rh5 {[%emt 0:00:04]} 79. Rd2 {[%emt 0:00:10]} Kc6 {[%emt 0:00:02]} 80. Rd1 {[%emt 0:00:06]} Ra5 {[%emt 0:00:05]} 81. Rd2 {[%emt 0:00:10]} Nc7 {[%emt 0:00:04]} 82. Kf3 {[%emt 0:00:13]} Nd5 {[%emt 0:00:12]} 83. e4 {[%emt 0:00:08]} Nf6 {[%emt 0:00:04]} 84. Kf4 {[%emt 0:00:03]} Nd7 {[%emt 0:00:09]} 85. Rd1 {[%emt 0:00:15]} Ra2 {[%emt 0:00:17]} 86. e5 {[%emt 0:00:15]} Rf2+ {[%emt 0:00:04]} 87. Ke3 {[%emt 0:00:11]} Rf5 {[%emt 0:00:04]} 88. e6 {[%emt 0:00:22]} Nc5 {[%emt 0:00:13]} 89. e7 $1 {[%emt 0:00:06]} Re5+ {[%emt 0:00:01]} 90. Kf4 {[%emt 0:00:01]} Rxe7 {[%emt 0:00:03]} 91. Kf5 {[%emt 0:00:00]} Re2 {[%emt 0:00:03]} 92. Kf4 {[%emt 0:00:09]} Nb7 {[%emt 0:00:03]} 93. Kf3 {[%emt 0:00:06]} Ra2 {[%emt 0:00:02]} 94. Kf4 {[%emt 0:00:02]} Nd6 {[%emt 0:00:00]} 95. Ke5 {[%emt 0:00:18]} Re2+ {[%emt 0:00:09]} 96. Kf4 {[%emt 0:00:01]} Kc5 {[%emt 0:00:05]} 97. Rc1+ {[%emt 0:00:08]} Nc4 {[%emt 0:00:05]} 98. Rd1 {[%emt 0:00:03]} Re8 {[%emt 0:00:12]} 99. Kf3 {[%emt 0:00:09]} Nb6 {[%emt 0:00:07]} 100. Rc1+ {[%emt 0:00:08]} Kd6 {[%emt 0:00:01]} 101. Kf2 {[%emt 0:00:40]} Nd5 {[%emt 0:00:02]} 102. Re1 {[%emt 0:00:01]} Rf8+ {[%emt 0:00:02]} 103. Kg3 {[%emt 0:00:00]} Kc5 {[%emt 0:00:08]} 104. Rd1 {[%emt 0:00:08]} Kc4 {[%emt 0:00:04]} 105. Rd2 {[%emt 0:00:08]} Ne3 {[%emt 0:00:05]} 106. Rd7 {[%emt 0:00:22]} Nd5 {[%emt 0:00:01]} 107. Ra7 {[%emt 0:00:01]} Kd4 {[%emt 0:00:10]} 108. Ra4+ {[%emt 0:00:01]} Ke5 {[%emt 0:00:02]} 109. Ra5 {[%emt 0:00:12]} Rb8 {[%emt 0:00:07]} 110. Ra3 {[%emt 0:00:17]} Rb4 {[%emt 0:00:13]} 111. Kf3 {[%emt 0:00:02]} Rf4+ {[%emt 0:00:10]} 112. Kg3 {[%emt 0:00:01]} Rf1 {[%emt 0:00:16]} 113. Ra5 {[%emt 0:00:06]} Rd1 {[%emt 0:00:06]} 114. Ra3 {[%emt 0:00:05]} Nb6 {[%emt 0:00:14]} 115. Re3+ {[%emt 0:00:04]} Kf5 {[%emt 0:00:01]} 116. Rc3 {[%emt 0:00:27]} Nd7 {[%emt 0:00:03]} 117. Rf3+ {[%emt 0:00:03]} Ke4 {[%emt 0:00:07]} 118. Rf4+ {[%emt 0:00:01]} Ke5 {[%emt 0:00:04]} 119. Rf3 {[%emt 0:00:20]} Nf6 {[%emt 0:00:16]} 120. Ra3 {[%emt 0:00:07]} Ne4+ {[%emt 0:00:22]} 121. Kf3 {[%emt 0:00:02]} Rd5 {[%emt 0:00:03]} 122. Re3 {[%emt 0:00:19]} Rd4 {[%emt 0:00:02]} 123. Re1 {[%emt 0:00:12]} Rb4 {[%emt 0:00:05]} 124. Re3 {[%emt 0:00:03]} Kf5 {[%emt 0:00:02]} 125. Rd3 {[%emt 0:00:15]} Nf6 {[%emt 0:00:12]} 126. Ra3 {[%emt 0:00:05]} Ng4 {[%emt 0:00:04]} 127. Ra5+ {[%emt 0:00:08]} Ne5+ {[%emt 0:00:01]} 128. Ke3 {[%emt 0:00:01]} Rb3+ {[%emt 0:00:05]} 129. Kd2 {[%emt 0:00:16]} Ke4 {[%emt 0:00:04]} 130. Kc2 {[%emt 0:00:11]} Rh3 {[%emt 0:00:05]} 131. Ra8 {[%emt 0:00:09]} Nc6 {[%emt 0:00:07]} 132. Ra4+ {[%emt 0:00:37]} Nd4+ {[%emt 0:00:05]} 133. Kb2 {[%emt 0:00:02]} Rb3+ {[%emt 0:00:04]} 134. Ka2 {[%emt 0:00:12]} Rb6 {[%emt 0:00:06]} 135. Ra3 $1 {[%emt 0:00:18]} Ne2 {[%emt 0:00:09]} 136. Rh3 {[%emt 0:00:08]} Kd4 {[%emt 0:00:05]} 137. Ka3 {[%emt 0:00:06]} Kc4 {[%emt 0:00:10]} 138. Rh4+ {[%emt 0:00:28]} Nd4 {[%emt 0:00:19]} 139. Ka2 {[%emt 0:00:02]} Rf6 {[%emt 0:00:14]} 140. Rh2 {[%emt 0:00:33]} Kc3 {[%emt 0:01:13]} 1/2-1/2

[Event "FTX Road to Miami KO 2022"]
[Site "Online"]
[Date "2022.07.14"]
[Round "1.1"]
[White "Erigaisi Arjun"]
[Black "Aronian, Levon"]
[Result "1-0"]
[ECO "D20"]
[WhiteElo "2689"]
[BlackElo "2775"]
[Annotator "TA"]
[PlyCount "111"]
[EventDate "2022.07.09"]
[EventType "k.o."]
[EventCountry "NET"]
[SourceTitle "playchess.com"]
[Source "ChessBase"]
[SourceQuality "1"]
[TimeControl "900+10"]

{[%evp 9,111,44,49,38,66,43,51,43,53,47,46,46,55,51,54,56,40,45,46,51,42,36,53,34,44,56,56,34,38,25,53,42,65,0,0,0,0,0,0,0,0,-16,-14,-50,0,0,0,-27,-38,-60,-54,-44,-9,0,8,9,12,6,15,-20,-44,-56,-22,-121,0,-9,-9,-243,-233,-202,147,130,196,71,64,86,972,899,764,723,1145,1102,1087,1026,12841,12842,12839,12843,12840,12843,12844,12844,12845,12845,12845,12846,12846,12847,12847,12847,12850,27999,27999,27999]} 1. d4 {[%emt 0:00:00]} d5 {[%emt 0:00:00]} 2. c4 {[%emt 0:00:02]} dxc4 {[%emt 0:00:02]} 3. e4 {[%emt 0:00:02]} b5 {[%emt 0:00:05]} 4. a4 {[%emt 0:00:01]} c6 {[%emt 0:00:01]} 5. axb5 {[%emt 0:00:02]} cxb5 {[%emt 0:00:01]} 6. Nc3 {[%emt 0:00:00][%cal Bb1c3,Bc3d5,Bd5c7][%mdl 32] D20: Queen's Gambit Accepted: 3 e3 and 3 e4.} Qb6 {[%emt 0:00:01] is the new trend.} 7. Nd5 {[%emt 0:00:03]} Qb7 {[%emt 0:00:02]} 8. Bf4 {[%emt 0:00:01] White is slightly better.} e5 $1 {[%emt 0:00:01]} 9. Bxe5 {[%emt 0:00:02]} Nd7 $1 {[%emt 0:00:01]} 10. Bf4 {[%emt 0:00:03]} Ngf6 {[%emt 0:00:09]} 11. Nc7+ $1 {[%emt 0:00:02]} Kd8 {[%emt 0:00:02] And now ...Bb4+ would win.} 12. Nxa8 {[%emt 0:00:00][%cal Of2f3] Hoping for f3!} Qxe4+ {[%emt 0:00:05]} 13. Ne2 {[%emt 0:00:01]} Qxa8 {[%emt 0:00:05]} 14. Nc3 {[%emt 0:00:15]} Bb4 {[%emt 0:00:07]} 15. f3 $1 {[%emt 0:00:01]} a5 {[%emt 0:00:27]} (15... Nd5 16. Bd2 $16) 16. Be2 {[%emt 0:00:03]} Qc6 {[%emt 0:00:36]} 17. O-O {[%emt 0:00:02]} Re8 {[%emt 0:00:06]} 18. Re1 {[%emt 0:00:14] [#]} a4 $146 {[%emt 0:00:27]} ({Predecessor:} 18... Bxc3 19. bxc3 Nd5 20. Qd2 b4 21. Rxa5 Nxc3 22. Bf1 Rxe1 23. Qxe1 Qb6 24. Ra8 Nd5 {½-½ (71) Fodor,B (2120)-Dev,S (2243) Budapest 2021}) 19. Bd2 {[%emt 0:00:25][%cal Oc3e4]} Nb6 {[%emt 0:00:42]} 20. Ne4 {[%emt 0:00:03]} Bd6 {[%emt 0:02:10]} (20... Bxd2 21. Qxd2 Bf5 22. Qf4 $16) 21. d5 {[%emt 0:04:55]} (21. Ba5 $14 Bc7 22. Qd2) 21... Nbxd5 $11 {[%emt 0:00:07]} 22. Nxd6 {[%emt 0:00:39] Dancing on a razor blade.} Qxd6 {[%emt 0:00:03]} 23. Ba5+ {[%emt 0:00:23]} Kd7 {[%emt 0:00:04]} 24. Qd4 {[%emt 0:00:12]} Bb7 {[%emt 0:00:11]} 25. Bf1 {[%emt 0:01:12]} Ra8 {[%emt 0:00:36]} 26. Bc3 {[%emt 0:01:08]} Qb6 {[%emt 0:00:49]} ({Better is} 26... Nxc3 $15 27. Qxc3 Kc7) 27. Qxb6 {[%emt 0:00:25]} Nxb6 {[%emt 0:00:00] Pair of Knights!} 28. f4 {[%emt 0:00:33]} Bd5 {[%emt 0:01:25]} 29. f5 {[%emt 0:01:30]} Kc6 {[%emt 0:00:25]} 30. Re3 {[%emt 0:01:46]} Nfd7 {[%emt 0:00:43]} 31. Rh3 {[%emt 0:00:43]} Be4 {[%emt 0:01:26]} 32. Rxh7 {[%emt 0:00:16]} ({Don't take} 32. Bxg7 Bxf5 33. Rh4 f6 $14) 32... Nd5 {[%emt 0:00:01]} 33. Bxg7 {[%emt 0:01:31] Black should prevent g4.} f6 {[%emt 0:00:24]} 34. Rh8 {[%emt 0:00:54] Against Rg8} (34. Rh4 $5 {[%cal Rh4e4]} Bxf5 35. g3 $16) 34... Rxh8 {[%emt 0:00:52]} 35. Bxh8 {[%emt 0:00:00]} Bxf5 {[%emt 0:00:02] aiming for ...c3.} 36. h4 {[%emt 0:00:02]} (36. Bxc4 $11 {remains equal.} bxc4 37. Rxa4) 36... Bg4 {[%emt 0:00:39]} (36... c3 $1 $17 {[%cal Rc3b2]} 37. bxc3 Nxc3) 37. Kf2 {[%emt 0:00:09]} Nc5 {[%emt 0:00:09]} 38. Be2 $2 {[%emt 0:00:43]} (38. Re1 $11) 38... Bxe2 $1 $19 {[%emt 0:03:50]} 39. Kxe2 {[%emt 0:00:00][%mdl 4096] Endgame KRB-KNN} Nd3 {[%emt 0:00:00] Prevents Rc1.} (39... b4 $1 $19 {Threatens to win with ...c3.} 40. Rf1 Ne4) 40. Rf1 $1 $16 {[%emt 0:01:24]} ({Stronger than} 40. Rb1 a3 41. Bxf6 Nxf6 42. bxa3 Kc5 $15) 40... Nxb2 {[%emt 0:01:26]} (40... b4 $16) 41. Bxf6 {[%emt 0:00:25]} (41. h5 $1 $18 {and the rest is easy.}) 41... Nd3 {[%emt 0:00:20] Strongly threatening ...b4.} (41... Nxf6 $2 42. Rxf6+ Kd7 43. h5 $18) 42. g3 {[%emt 0:00:44] h5 is the strong threat.} a3 $2 {[%emt 0:02:59][%mdl 8192]} (42... Nxf6 $2 43. Rxf6+ Kd7 44. h5 $18) (42... Nc1+ $16 43. Rxc1 Nxf6) 43. h5 $18 {[%emt 0:00:02]} Nc1+ {[%emt 0:00:21]} 44. Kd1 $1 {[%emt 0:00:38]} Nb3 {[%emt 0:00:04] [#]} 45. h6 $1 {[%emt 0:00:03]} a2 {[%emt 0:00:15]} 46. h7 {[%emt 0:00:25]} Nxf6 {[%emt 0:00:17]} 47. Rxf6+ {[%emt 0:00:00] KR-KN} Kb7 {[%emt 0:00:01]} 48. Rf7+ {[%emt 0:00:01]} Kb6 {[%emt 0:00:00]} 49. h8=Q {[%emt 0:00:00] Threatening mate with Qd8+.} a1=Q+ {[%emt 0:00:02]} 50. Qxa1 {[%emt 0:00:01]} Nxa1 {[%emt 0:00:00] KR-KN} 51. g4 {[%emt 0:00:08][%cal Bg3g4,Bg4g5][%mdl 32]} b4 {[%emt 0:00:05]} 52. g5 {[%emt 0:00:04]} b3 {[%emt 0:00:28]} 53. Rf2 {[%emt 0:00:50]} c3 {[%emt 0:00:11]} 54. Kc1 {[%emt 0:00:02]} b2+ {[%emt 0:00:02] [#]} 55. Rxb2+ $1 {[%emt 0:00:01][%mdl 512]} cxb2+ {[%emt 0:00:04]} 56. Kxb2 {[%emt 0:00:00] Weighted Error Value: White=0.23 (precise) /Black=0.24 (precise)} 1-0